bitfinex/quotes_SOLUSD_20250802
["timestamp","ask_amount","ask_price","bid_price","bid_amount"]
[1754157394772,74.59827277,159.4,159.39,0.06]
[1754157394948,4.04053878,159.4,159.39,0.06]
[1754157395270,53.08053878,159.4,159.39,0.06]
[1754157396252,53.08053878,159.4,159.39,15.83485012]
[1754157396253,4.04053878,159.4,159.39,15.83485012]
[1754157396480,4.04053878,159.42,159.41,0.06]
[1754157396690,4.04053878,159.42,159.41,15.83485012]
[1754157396866,49.04,159.43,159.41,15.83485012]
[1754157397176,41.77485012,159.46,159.41,0.06]
[1754157397378,53.08944934,159.45,159.43,15.77485012]
[1754157397561,49.06,159.46,159.44,15.77485012]
[1754157397773,4.05046889,159.45,159.44,15.77485012]
[1754157397986,4.05076308,159.45,159.44,15.77485012]
[1754157398167,49.06,159.46,159.44,15.77485012]
[1754157398692,4.05070464,159.45,159.44,15.77485012]
[1754157398883,49.06,159.46,159.44,15.77485012]
[1754157399760,0.03,159.47,159.45,15.77485012]
[1754157399962,4.08096342,159.47,159.45,15.77485012]
[1754157400287,4.08096342,159.47,159.46,15.77485012]
[1754157400492,0.03,159.47,159.46,15.77485012]
[1754157402383,0.03,159.47,159.46,15.90485012]
[1754157403313,0.69,159.57,159.56,15.77485012]
[1754157403474,49.73,159.57,159.55,15.77485012]
[1754157403674,4.05431652,159.56,159.55,15.77485012]
[1754157403876,0.03,159.59,159.55,15.77485012]
[1754157404101,49.73,159.58,159.56,15.77485012]
[1754157404305,49.73,159.58,159.51,0.62691994]
[1754157404306,49.73,159.58,159.57,15.77485012]
[1754157404484,53.7830912,159.58,159.57,15.77485012]
[1754157404684,53.0930912,159.58,159.57,15.77485012]
[1754157404915,0.03,159.59,159.57,15.77485012]
[1754157405089,0.03,159.59,159.58,15.77485012]
[1754157405701,0.03,159.59,159.5,15.77485012]
[1754157405702,0.72,159.59,159.5,15.77485012]
[1754157405922,20.54663152,159.59,159.5,0.13]
[1754157406125,4.74162487,159.58,159.5,0.13]
[1754157406279,0.69,159.58,159.53,15.77485012]
[1754157406482,0.69,159.57,159.53,15.77485012]
[1754157406810,49.05,159.59,159.53,15.77485012]
[1754157406811,0.69,159.56,159.53,15.77485012]
[1754157407330,49.05,159.59,159.48,0.62703787]
[1754157407331,0.03,159.59,159.55,15.77485012]
[1754157407482,0.03,159.63,159.58,15.77485012]
[1754157407683,0.03,159.63,159.62,15.77485012]
[1754157408986,49.05,159.63,159.62,15.77485012]
[1754157409386,49.74,159.63,159.62,15.77485012]
[1754157409604,49.05,159.63,159.62,15.77485012]
[1754157409911,49.03,159.63,159.62,15.77485012]
[1754157410121,49.72,159.63,159.62,15.77485012]
[1754157410810,0.72,159.63,159.53,0.62684134]
[1754157411115,0.72,159.63,159.47,0.1]
[1754157411116,41.77485012,159.6,159.47,0.1]
[1754157411326,41.77485012,159.6,159.56,15.77485012]
[1754157411485,26.69,159.59,159.56,15.77485012]
[1754157411691,49.0,159.58,159.5,15.77485012]
[1754157412089,26.69,159.59,159.57,15.77485012]
[1754157412391,26.69,159.59,159.5,15.77485012]
[1754157412392,49.67,159.58,159.45,0.72715584]
[1754157412593,0.69,159.57,159.56,15.77485012]
[1754157413111,0.69,159.57,159.5,15.77485012]
[1754157413329,0.69,159.57,159.45,0.72715584]
[1754157413488,15.77485012,159.56,159.51,15.77485012]
[1754157413815,4.7248169,159.55,159.51,15.77485012]
[1754157414022,0.69,159.54,159.51,15.77485012]
[1754157414179,0.69,159.54,159.43,0.62723452]
[1754157414180,48.98,159.53,159.43,0.62723452]
[1754157414384,0.69,159.52,159.51,15.77485012]
[1754157415020,0.69,159.52,159.5,15.77485012]
[1754157415202,0.69,159.52,159.49,15.77485012]
[1754157415411,0.69,159.52,159.42,0.72727386]
[1754157415412,48.98,159.53,159.5,15.77485012]
[1754157415691,48.98,159.53,159.42,0.72727386]
[1754157415692,0.69,159.51,159.42,0.72727386]
[1754157415933,0.69,159.51,159.5,15.77485012]
[1754157416085,0.69,159.51,159.42,0.72727386]
[1754157416286,0.69,159.51,159.5,15.77485012]
[1754157417306,49.67,159.51,159.43,0.1]
[1754157417515,49.67,159.51,159.5,15.77485012]
[1754157418911,49.67,159.51,159.49,15.77485012]
[1754157419108,0.69,159.5,159.49,15.77485012]
[1754157419632,0.69,159.5,159.48,15.83485012]
[1754157419927,0.69,159.49,159.48,15.83485012]
[1754157420318,0.69,159.49,159.48,0.06]
[1754157420542,26.69,159.49,159.48,0.06]
[1754157420709,0.69,159.53,159.48,15.83485012]
[1754157420910,48.96,159.52,159.5,15.77485012]
[1754157421225,26.0,159.53,159.51,15.77485012]
[1754157421409,48.96,159.52,159.48,0.06]
[1754157421612,48.96,159.52,159.51,15.77485012]
[1754157422150,15.77485,159.56,159.51,15.77485012]
[1754157422151,0.72,159.56,159.51,15.77485012]
[1754157422344,0.72,159.56,159.5,15.77485012]
[1754157422345,48.98,159.55,159.5,15.77485012]
[1754157422548,16.49485,159.59,159.54,15.77485012]
[1754157422858,48.96,159.58,159.54,0.1]
[1754157423018,48.96,159.58,159.55,0.1]
[1754157423214,48.96,159.58,159.51,0.62691994]
[1754157423537,48.96,159.58,159.52,0.1]
[1754157423713,0.72,159.61,159.57,15.77485012]
[1754157423909,0.72,159.61,159.6,15.77485012]
[1754157424226,49.68,159.61,159.6,15.77485012]
[1754157424549,69.49061153,159.61,159.55,15.77485012]
[1754157424735,20.53061153,159.6,159.55,15.77485012]
[1754157424935,0.72,159.59,159.55,15.77485012]
[1754157425248,4.75567894,159.59,159.5,15.77485012]
[1754157425451,0.72,159.59,159.56,15.77485012]
[1754157425652,0.72,159.58,159.56,15.77485012]
[1754157425840,49.68,159.57,159.55,15.77485012]
[1754157426037,0.72,159.56,159.53,15.77485012]
[1754157426243,26.0,159.57,159.54,15.77485012]
[1754157426553,48.96,159.56,159.5,15.77485012]
[1754157427061,26.72,159.61,159.51,0.72691994]
[1754157427229,48.96,159.6,159.51,0.72691994]
[1754157427430,26.72,159.61,159.51,0.62691994]
[1754157427657,26.72,159.61,159.52,0.1]
[1754157427658,48.94,159.59,159.52,0.1]
[1754157427947,0.03,159.63,159.58,15.77485012]
[1754157428130,0.03,159.63,159.62,15.77485012]
[1754157428344,48.97,159.63,159.62,15.77485012]
[1754157428545,49.69,159.63,159.62,15.77485012]
[1754157428860,26.0,159.6,159.58,15.77485012]
[1754157429077,49.66,159.59,159.57,15.77485012]
[1754157429239,0.72,159.58,159.56,15.77485012]
[1754157429438,0.72,159.58,159.5,15.77485012]
[1754157429439,0.72,159.57,159.55,15.77485012]
[1754157429657,64.71485012,159.59,159.55,15.77485012]
[1754157429866,0.72,159.56,159.55,15.77485012]
[1754157430457,0.72,159.56,159.48,0.06]
[1754157430763,0.72,159.56,159.52,15.77485012]
[1754157430764,48.94,159.55,159.52,15.77485012]
[1754157430947,0.72,159.54,159.52,15.77485012]
[1754157431335,26.0,159.58,159.53,15.77485012]
[1754157431552,49.64,159.57,159.55,15.77485012]
[1754157432170,0.72,159.56,159.55,15.77485012]
[1754157432553,0.72,159.56,159.54,15.77485012]
[1754157433060,48.92,159.55,159.49,0.1]
[1754157433263,48.92,159.55,159.54,15.77485012]
[1754157433666,48.92,159.55,159.48,0.06]
[1754157433667,49.64,159.55,159.48,0.06]
[1754157433843,49.64,159.55,159.51,15.77485012]
[1754157434040,0.72,159.54,159.51,15.77485012]
[1754157434257,48.92,159.55,159.51,15.77485012]
[1754157434570,48.92,159.55,159.52,15.77485012]
[1754157434779,0.72,159.54,159.52,15.77485012]
[1754157434970,0.72,159.54,159.48,0.06]
[1754157435187,0.72,159.53,159.48,0.06]
[1754157435384,0.72,159.53,159.52,15.77485012]
[1754157435587,0.72,159.53,159.48,0.06]
[1754157435588,48.92,159.53,159.48,0.16]
[1754157435796,49.64,159.53,159.52,15.77485012]
[1754157436880,49.64,159.53,159.48,0.06]
[1754157437089,49.64,159.53,159.48,15.83485012]
[1754157437090,0.72,159.52,159.48,15.83485012]
[1754157437243,0.72,159.52,159.49,15.77485012]
[1754157437440,49.64,159.51,159.5,15.77485012]
[1754157437878,49.62,159.51,159.5,15.77485012]
[1754157438083,48.9,159.51,159.5,15.77485012]
[1754157438448,0.72,159.56,159.5,15.77485012]
[1754157438642,0.72,159.56,159.53,15.77485012]
[1754157438880,49.62,159.55,159.53,15.77485012]
[1754157439246,0.72,159.54,159.51,15.77485012]
[1754157439561,4.76392262,159.54,159.52,15.77485012]
[1754157439893,0.72,159.53,159.51,15.77485012]
[1754157440197,4.04392262,159.54,159.52,15.77485012]
[1754157440367,26.0,159.55,159.53,15.77485012]
[1754157440583,26.0,159.55,159.48,0.16]
[1754157440584,21.54316662,159.59,159.54,15.77485012]
[1754157440776,3.27191636,159.6,159.51,0.62691994]
[1754157440777,4.76831852,159.58,159.51,0.62691994]
[1754157440968,48.9,159.57,159.51,0.72691994]
[1754157441166,3.99191636,159.6,159.51,0.72691994]
[1754157441414,48.9,159.59,159.51,0.72691994]
[1754157441701,4.049353,159.58,159.51,0.72691994]
[1754157441903,4.049353,159.58,159.57,11.02166037]
[1754157442260,49.62,159.58,159.57,11.02166037]
[1754157442503,49.62,159.58,159.48,0.06]
[1754157442504,69.73932999,159.58,159.53,11.02166037]
[1754157442666,20.83932999,159.57,159.52,11.02166037]
[1754157442867,25.50958062,159.56,159.51,15.691911]
[1754157443115,4.769353,159.55,159.52,15.691911]
[1754157443310,48.9,159.54,159.48,0.06]
[1754157443494,4.05517903,159.53,159.48,0.06]
[1754157443705,48.88,159.52,159.48,0.16]
[1754157444083,48.88,159.52,159.49,0.1]
[1754157444320,0.72,159.55,159.51,15.691911]
[1754157444643,48.88,159.52,159.48,0.16]
[1754157444802,48.88,159.52,159.48,0.06]
[1754157445001,48.88,159.52,159.49,0.1]
[1754157445237,48.88,159.52,159.48,0.06]
[1754157445536,48.88,159.52,159.48,0.16]
[1754157445709,48.88,159.52,159.51,15.691911]
[1754157446031,48.88,159.53,159.51,15.691911]
[1754157446401,48.88,159.53,159.48,0.78703787]
[1754157446402,48.88,159.53,159.52,15.691911]
[1754157446818,52.93804553,159.53,159.52,15.691911]
[1754157447120,52.93863265,159.53,159.52,15.691911]
[1754157447320,48.88,159.53,159.52,15.691911]
[1754157447516,0.72,159.55,159.52,15.691911]
[1754157447823,0.72,159.55,159.54,15.691911]
[1754157448043,49.6,159.55,159.54,15.691911]
[1754157448211,53.65950869,159.55,159.53,15.691911]
[1754157448411,4.77950869,159.54,159.53,15.691911]
[1754157448600,20.47141969,159.54,159.48,0.06]
[1754157448803,20.47141969,159.54,159.49,15.691911]
[1754157448804,4.77950869,159.53,159.49,15.691911]
[1754157449025,4.05950869,159.53,159.49,15.691911]
[1754157449230,0.72,159.52,159.49,15.691911]
[1754157449443,49.58,159.51,159.48,15.751911]
[1754157449639,0.72,159.5,159.48,15.751911]
[1754157449824,0.72,159.5,159.49,15.691911]
[1754157450129,48.86,159.51,159.49,15.691911]
[1754157450304,4.77875468,159.5,159.48,0.06]
[1754157450505,8.32125298,159.55,159.49,15.691911]
[1754157450706,26.72,159.53,159.48,0.06]
[1754157450907,52.91873393,159.52,159.48,0.06]
[1754157451214,4.05873393,159.51,159.5,15.691911]
[1754157451537,52.91873393,159.51,159.5,15.691911]
[1754157452106,48.86,159.51,159.5,15.691911]
[1754157452341,52.91797142,159.51,159.5,15.691911]
[1754157453061,26.0,159.49,159.48,0.06]
[1754157453215,45.74988242,159.49,159.48,0.06]
[1754157453549,30.71797142,159.49,159.48,0.06]
[1754157454047,79.55797142,159.49,159.48,0.06]
[1754157454223,30.71797142,159.49,159.48,0.06]
[1754157454539,48.84,159.49,159.48,15.751911]
[1754157454907,0.66,159.52,159.48,15.751911]
[1754157455141,0.66,159.52,159.51,15.691911]
[1754157455142,4.06312575,159.52,159.51,15.691911]
[1754157455436,52.90312575,159.52,159.51,15.691911]
[1754157455929,0.66,159.56,159.51,15.691911]
[1754157456133,5.07246427,159.57,159.55,15.691911]
[1754157456134,4.06706776,159.57,159.55,15.691911]
[1754157456329,4.06706776,159.58,159.56,15.691911]
[1754157456531,4.06706776,159.59,159.57,15.691911]
[1754157456731,48.84,159.58,159.57,15.691911]
[1754157456933,52.90706776,159.58,159.57,15.691911]
[1754157457122,53.56706776,159.58,159.48,0.68703787]
[1754157457311,9.79953203,159.57,159.54,15.691911]
[1754157457511,4.72706776,159.56,159.53,15.691911]
[1754157457716,52.90706776,159.55,159.52,15.691911]
[1754157458013,4.72706776,159.54,159.52,15.691911]
[1754157458940,4.72706776,159.54,159.53,15.691911]
[1754157459241,52.88706776,159.54,159.53,15.691911]
[1754157459838,4.06706776,159.54,159.53,15.691911]
[1754157460017,48.82,159.54,159.53,15.691911]
[1754157460363,0.66,159.57,159.53,15.691911]
[1754157460643,0.66,159.57,159.5,15.791911]
[1754157460644,48.82,159.54,159.5,15.791911]
[1754157461015,48.82,159.54,159.48,0.78703787]
[1754157461743,48.82,159.54,159.53,15.691911]
[1754157462645,48.704754,159.54,159.53,15.691911]
[1754157462853,48.8,159.54,159.53,15.691911]
[1754157463219,5.07246427,159.6,159.53,16.41875234]
[1754157463417,0.66,159.61,159.59,15.691911]
[1754157463418,4.07183296,159.61,159.59,15.691911]
[1754157463760,48.8,159.62,159.6,15.691911]
[1754157463924,48.8,159.62,159.61,15.691911]
[1754157464319,49.46,159.62,159.61,15.691911]
[1754157464543,53.52998243,159.62,159.61,15.691911]
[1754157464946,4.06998243,159.62,159.61,15.691911]
[1754157465260,0.03,159.63,159.61,15.691911]
[1754157465261,48.81,159.63,159.61,15.691911]
[1754157465557,48.81,159.63,159.62,15.691911]
[1754157466915,48.81,159.63,159.62,11.01188381]
[1754157467128,0.03,159.63,159.62,11.01188381]
[1754157467734,4.75117371,159.63,159.62,11.01188381]
[1754157467947,0.69,159.63,159.62,11.01188381]
[1754157469931,0.03,159.63,159.62,11.01188381]
[1754157470250,48.79,159.63,159.62,11.01188381]
[1754157470433,48.79,159.63,159.6,11.01188381]
[1754157470645,0.66,159.62,159.56,0.1]
[1754157470963,48.79,159.63,159.61,11.01188381]
[1754157471184,48.79,159.63,159.62,11.01188381]
[1754157471636,49.45,159.63,159.62,11.01188381]
[1754157472556,48.77,159.63,159.62,11.01188381]
[1754157474048,0.03,159.63,159.62,11.11188381]
[1754157474568,0.2,159.69,159.62,11.11188381]
[1754157474744,0.2,159.69,159.68,11.01188381]
[1754157474945,48.92,159.69,159.68,11.01188381]
[1754157475454,0.2,159.69,159.68,11.01188381]
[1754157475767,48.92,159.69,159.68,11.01188381]
[1754157476693,49.58,159.69,159.68,11.01188381]
[1754157476968,0.2,159.69,159.68,11.01188381]
[1754157477339,48.9,159.69,159.68,11.01188381]
[1754157477791,0.2,159.69,159.68,11.01188381]
[1754157477946,0.2,159.69,159.68,22.12376762]
[1754157478377,0.2,159.72,159.68,22.12376762]
[1754157478678,0.2,159.72,159.71,11.01188381]
[1754157482654,0.2,159.72,159.71,11.63801867]
[1754157482870,0.2,159.72,159.71,11.73801867]
[1754157483257,0.03,159.73,159.71,11.73801867]
[1754157483570,0.03,159.73,159.72,11.11188381]
[1754157484077,0.03,159.73,159.72,11.01188381]
[1754157484578,49.38,159.73,159.72,11.01188381]
[1754157484882,49.38,159.73,159.71,11.01188381]
[1754157485175,49.38,159.73,159.64,26.0]
[1754157485176,0.71,159.72,159.69,11.01188381]
[1754157485375,0.71,159.72,159.7,11.01188381]
[1754157485576,0.71,159.71,159.7,11.01188381]
[1754157485791,49.33,159.71,159.7,11.01188381]
[1754157485992,49.33,159.71,159.69,11.07188381]
[1754157486289,48.62,159.71,159.7,11.01188381]
[1754157486491,49.33,159.71,159.7,11.01188381]
[1754157486877,49.33,159.71,159.69,0.06]
[1754157487074,48.62,159.71,159.69,11.07188381]
[1754157487288,48.62,159.71,159.7,11.01188381]
[1754157487588,49.33,159.71,159.69,11.07188381]
[1754157487795,48.62,159.71,159.7,11.01188381]
[1754157487989,48.62,159.71,159.69,11.07188381]
[1754157488395,48.62,159.71,159.69,0.06]
[1754157488396,0.71,159.7,159.69,0.06]
[1754157489694,49.31,159.7,159.69,0.06]
[1754157489862,0.03,159.73,159.69,0.06]
[1754157490064,26.03,159.73,159.72,11.01188381]
[1754157490371,48.63,159.73,159.72,11.01188381]
[1754157490776,49.34,159.73,159.72,11.01188381]
[1754157491074,60.35188381,159.73,159.69,0.06]
[1754157491267,11.72188381,159.72,159.69,0.06]
[1754157491469,0.71,159.72,159.69,0.06]
[1754157491671,0.71,159.71,159.69,0.06]
[1754157491999,0.71,159.71,159.57,10.0]
[1754157492000,37.01188381,159.7,159.57,0.16]
[1754157492304,11.01188381,159.63,159.59,11.01188381]
[1754157492467,86.30188381,159.62,159.53,0.1]
[1754157492665,59.59188381,159.61,159.56,11.01188381]
[1754157492870,49.29,159.61,159.56,11.01188381]
[1754157493099,11.01188381,159.58,159.53,11.11188381]
[1754157493304,49.29,159.57,159.53,0.1]
[1754157493601,0.71,159.57,159.55,11.01188381]
[1754157493773,0.71,159.57,159.53,0.1]
[1754157493774,48.58,159.56,159.53,0.1]
[1754157493972,49.29,159.56,159.53,0.1]
[1754157494171,0.71,159.55,159.53,11.11188381]
[1754157494473,0.71,159.54,159.53,0.1]
[1754157494689,0.71,159.54,159.53,11.11188381]
[1754157495021,48.58,159.56,159.53,11.11188381]
[1754157495299,0.71,159.58,159.55,11.01188381]
[1754157495472,48.58,159.58,159.57,11.01188381]
[1754157496085,5.03001575,159.66,159.57,11.01188381]
[1754157496086,48.58,159.6,159.57,11.01188381]
[1754157496318,48.58,159.6,159.54,0.16]
[1754157496319,48.58,159.6,159.59,11.01188381]
[1754157496885,49.29,159.63,159.59,15.66851978]
[1754157497109,49.29,159.63,159.62,15.66851978]
[1754157497289,5.03001575,159.7,159.62,15.66851978]
[1754157497290,0.71,159.66,159.62,15.66851978]
[1754157497503,48.58,159.63,159.57,0.78668421]
[1754157497883,37.4832195,159.7,159.58,0.16]
[1754157497884,48.58,159.64,159.58,0.16]
[1754157498115,0.71,159.67,159.59,0.62660567]
[1754157498316,49.29,159.67,159.59,0.62660567]
[1754157498514,49.29,159.67,159.66,15.66851978]
[1754157499603,0.71,159.67,159.66,15.66851978]
[1754157499893,49.27,159.67,159.64,15.66851978]
[1754157500097,0.71,159.66,159.65,15.66851978]
[1754157500704,48.56,159.66,159.65,15.66851978]
[1754157501204,0.71,159.68,159.65,15.66851978]
[1754157501425,0.71,159.68,159.67,15.66851978]
[1754157501609,49.27,159.68,159.62,0.6264879]
[1754157501931,48.56,159.68,159.67,15.66851978]
[1754157502136,52.60078101,159.68,159.67,15.66851978]
[1754157502448,53.31078101,159.68,159.67,15.66851978]
[1754157502734,53.31078101,159.68,159.65,15.66851978]
[1754157502898,4.75078101,159.67,159.64,15.66851978]
[1754157503105,4.75078101,159.67,159.57,0.78668421]
[1754157503106,0.71,159.66,159.65,15.66851978]
[1754157504012,49.25,159.66,159.65,15.66851978]
[1754157504872,53.29727484,159.66,159.61,15.66851978]
[1754157505008,26.0,159.63,159.61,15.66851978]
[1754157505212,26.0,159.63,159.55,0.16]
[1754157505213,49.23,159.62,159.55,0.78676277]
[1754157505417,49.23,159.62,159.61,15.66851978]
[1754157505619,26.0,159.63,159.61,15.66851978]
[1754157505909,48.52,159.62,159.55,0.62676277]
[1754157506109,48.52,159.62,159.56,0.16]
[1754157506309,48.52,159.62,159.57,0.62668421]
[1754157506521,48.52,159.62,159.58,0.16]
[1754157506924,48.52,159.62,159.61,15.66851978]
[1754157507139,48.52,159.63,159.61,15.66851978]
[1754157507351,48.52,159.63,159.62,15.66851978]
[1754157507517,49.23,159.63,159.62,15.66851978]
[1754157507720,53.28084094,159.63,159.62,15.66851978]
[1754157508656,53.28084094,159.63,159.53,0.1]
[1754157508857,4.76084094,159.62,159.58,15.66851978]
[1754157509151,0.71,159.61,159.58,15.66851978]
[1754157509628,16.37851978,159.61,159.56,15.66851978]
[1754157509825,4.05084094,159.6,159.56,15.66851978]
[1754157510034,49.21,159.59,159.53,0.1]
[1754157510217,19.71936072,159.58,159.53,0.1]
[1754157510419,16.37851978,159.58,159.53,15.76851978]
[1754157510754,15.66851978,159.54,159.53,0.1]
[1754157510934,68.21741191,159.54,159.53,0.1]
[1754157511279,26.0,159.53,159.5,0.06]
[1754157511634,0.7,159.52,159.5,0.06]
[1754157511951,48.5,159.51,159.5,0.06]
[1754157512157,49.2,159.51,159.5,0.06]
[1754157512340,21.84579913,159.58,159.5,15.72851978]
[1754157512341,26.7,159.55,159.5,15.72851978]
[1754157512679,48.5,159.54,159.5,0.06]
[1754157512839,16.78468397,159.58,159.51,0.26]
[1754157512840,0.7,159.58,159.51,0.26]
[1754157513047,0.7,159.58,159.52,0.62688064]
[1754157513048,48.48,159.58,159.52,0.62688064]
[1754157513843,48.48,159.58,159.57,15.66851978]
[1754157514173,49.18,159.58,159.57,15.66851978]
[1754157514340,0.7,159.61,159.57,15.66851978]
[1754157514540,0.7,159.61,159.6,15.66851978]
[1754157514755,49.18,159.61,159.6,15.66851978]
[1754157515155,49.18,159.61,159.54,0.62680205]
[1754157515472,47.48,159.61,159.6,15.66851978]
[1754157516001,48.18,159.61,159.6,15.66851978]
[1754157516359,0.7,159.64,159.6,15.66851978]
[1754157516666,48.46,159.63,159.62,15.66851978]
[1754157517267,48.46,159.63,159.57,0.26]
[1754157517579,48.46,159.63,159.62,15.66851978]
[1754157517969,49.16,159.63,159.62,15.66851978]
[1754157518271,49.16,159.63,159.54,0.26]
[1754157518602,0.7,159.62,159.55,0.62676277]
[1754157519755,0.7,159.62,159.61,11.01518754]
[1754157520559,0.7,159.62,159.55,0.62676277]
[1754157520759,0.7,159.62,159.6,11.01518754]
[1754157520958,0.7,159.62,159.59,11.01518754]
[1754157521273,26.0,159.61,159.59,11.01518754]
[1754157521598,0.7,159.6,159.59,11.01518754]
[1754157522184,26.7,159.6,159.57,11.01518754]
[1754157522382,53.18180141,159.59,159.55,11.01518754]
[1754157522589,0.7,159.58,159.55,11.01518754]
[1754157522771,15.75653084,159.58,159.53,11.01518754]
[1754157522966,0.7,159.57,159.53,11.01518754]
[1754157523570,0.7,159.57,159.54,11.01518754]
[1754157523780,30.7408245,159.57,159.53,11.01518754]
[1754157524064,41.75525965,159.56,159.51,11.01518754]
[1754157524263,49.12,159.55,159.52,11.01518754]
[1754157524568,49.12,159.55,159.51,11.01518754]
[1754157524569,0.7,159.54,159.51,11.01518754]
[1754157524769,0.7,159.54,159.5,0.06]
[1754157524982,0.7,159.54,159.5,11.07518754]
[1754157525287,48.42,159.55,159.51,11.01518754]
[1754157525494,0.7,159.53,159.51,11.01518754]
[1754157525685,48.42,159.52,159.51,11.01518754]
[1754157525885,26.0,159.56,159.51,11.01518754]
[1754157526190,26.0,159.56,159.5,11.07518754]
[1754157526191,49.1,159.55,159.5,11.07518754]
[1754157526489,0.7,159.54,159.5,0.06]
[1754157526664,0.7,159.53,159.5,0.06]
[1754157526862,0.7,159.52,159.5,0.06]
[1754157527204,48.42,159.51,159.5,0.06]
[1754157527365,74.42,159.51,159.5,0.06]
[1754157527571,75.12,159.51,159.5,0.06]
[1754157527784,79.1568605,159.51,159.5,0.06]
[1754157528589,74.4,159.51,159.5,0.06]
[1754157528993,75.1,159.51,159.5,0.06]
[1754157529195,79.58544825,159.51,159.5,11.07518754]
[1754157529495,79.58651012,159.51,159.5,0.06]
[1754157529671,26.0,159.49,159.48,0.06]
[1754157529870,34.52331053,159.49,159.48,0.06]
[1754157530190,35.22331053,159.49,159.48,0.06]
[1754157530711,83.62331053,159.49,159.48,0.06]
[1754157531518,94.69849853,159.49,159.48,0.06]
[1754157531695,46.29849853,159.49,159.48,0.06]
[1754157531898,94.69849853,159.49,159.48,0.06]
[1754157532920,93.85006972,159.49,159.48,0.06]
[1754157533093,82.07488172,159.49,159.48,0.06]
[1754157533292,82.77488172,159.49,159.48,0.06]
[1754157533500,52.88602655,159.49,159.48,11.07518754]
[1754157533693,48.4,159.49,159.48,11.07518754]
[1754157534121,52.88072673,159.49,159.48,11.07518754]
[1754157534319,56.91399164,159.49,159.48,11.07518754]
[1754157534538,57.61399164,159.49,159.48,11.07518754]
[1754157534831,57.61399164,159.49,159.48,0.06]
[1754157535319,53.56149828,159.49,159.48,0.06]
[1754157536018,53.56149828,159.49,159.48,11.07518754]
[1754157536206,52.86149828,159.49,159.48,11.07518754]
[1754157536622,26.0,159.52,159.48,11.07518754]
[1754157536929,57.59762648,159.51,159.49,11.01518754]
[1754157537139,48.38,159.51,159.5,11.01518754]
[1754157537423,56.89757985,159.51,159.5,11.01518754]
[1754157537829,57.59757985,159.51,159.48,0.06]
[1754157537998,8.51757985,159.5,159.49,11.01518754]
[1754157538194,5.18260297,159.5,159.48,0.06]
[1754157538418,53.54072359,159.49,159.48,0.06]
[1754157538717,57.57396364,159.49,159.48,0.06]
[1754157538916,94.58915118,159.49,159.48,0.06]
[1754157539134,83.57396364,159.49,159.48,0.06]
[1754157539650,94.58915118,159.49,159.48,0.06]
[1754157540024,83.57396364,159.49,159.48,0.06]
[1754157540522,34.51396364,159.49,159.48,11.07518754]
[1754157540729,4.47796099,159.49,159.48,11.07518754]
[1754157540921,48.36,159.49,159.48,11.07518754]
[1754157541551,26.03,159.53,159.48,22.41037508]
[1754157541552,0.03,159.53,159.48,22.41037508]
[1754157541725,48.39,159.53,159.52,11.01518754]
[1754157544317,48.39,159.53,159.52,11.33518754]
[1754157544532,48.39,159.53,159.52,11.01518754]
[1754157544847,48.39,159.53,159.49,0.32]
[1754157545027,48.39,159.53,159.52,11.01518754]
[1754157547540,48.39,159.53,159.48,0.06]
[1754157547541,49.04,159.53,159.48,0.06]
[1754157547747,5.13822596,159.52,159.49,11.01518754]
[1754157547943,5.13835004,159.51,159.49,11.01518754]